bitfinex/quotes_BTCUSD_20240712
["timestamp","ask_amount","ask_price","bid_price","bid_amount"]
[1720817535814,0.0809,57741.0,57740.0,0.00854913]
[1720817536071,0.0809,57741.0,57740.0,0.17768381]
[1720817536294,0.17121515,57753.0,57741.0,0.0763]
[1720817536581,0.0809,57743.0,57742.0,0.00306353]
[1720817536822,0.0809,57743.0,57742.0,0.01159429]
[1720817537037,0.0809,57743.0,57742.0,0.00853076]
[1720817538900,0.0819,57743.0,57742.0,0.00853076]
[1720817540368,0.0819,57743.0,57742.0,0.01248514]
[1720817541582,0.1819,57743.0,57742.0,0.13048514]
[1720817542580,0.0819,57743.0,57742.0,0.13048514]
[1720817543946,0.0819,57743.0,57742.0,0.01248514]
[1720817544632,0.0819,57743.0,57742.0,0.13048514]
[1720817544851,0.0819,57743.0,57742.0,0.01248514]
[1720817545517,0.0819,57743.0,57742.0,0.19478514]
[1720817545964,0.15122518,57752.0,57747.0,0.118]
[1720817546180,0.17121515,57753.0,57748.0,0.00306353]
[1720817546181,0.0809,57750.0,57748.0,0.00306353]
[1720817546398,0.0809,57750.0,57748.0,0.01546604]
[1720817546601,0.0809,57750.0,57748.0,0.04484504]
[1720817546815,0.10615595,57753.0,57749.0,0.21162342]
[1720817547023,0.10615595,57753.0,57750.0,0.00306353]
[1720817547240,0.0809,57753.0,57750.0,0.00306353]
[1720817547444,0.0809,57753.0,57751.0,0.0123612]
[1720817547719,0.0809,57753.0,57752.0,0.00306353]
[1720817548173,0.0809,57753.0,57752.0,0.01541096]
[1720817548377,0.0809,57753.0,57752.0,0.01234743]
[1720817548784,0.0809,57753.0,57751.0,0.00306353]
[1720817549019,0.0809,57753.0,57752.0,0.01234743]
[1720817549466,0.0809,57753.0,57752.0,0.15494743]
[1720817549673,0.0809,57753.0,57752.0,0.15801096]
[1720817550345,0.0822,57753.0,57752.0,0.15901096]
[1720817550580,0.08303,57753.0,57752.0,0.15901096]
[1720817551233,0.08303,57753.0,57752.0,0.15594743]
[1720817551451,0.08303,57753.0,57752.0,0.15694743]
[1720817551875,0.10793992,57753.0,57752.0,0.16560648]
[1720817552061,0.20793992,57753.0,57752.0,0.16560648]
[1720817556189,0.20793992,57753.0,57752.0,0.15694743]
[1720817562226,0.20793992,57753.0,57752.0,0.15573386]
[1720817562425,0.20793992,57753.0,57752.0,0.14338643]
[1720817564447,0.20793992,57753.0,57752.0,0.14644996]
[1720817564892,0.20793992,57753.0,57752.0,0.14338643]
[1720817566704,0.20793992,57753.0,57752.0,0.002]
[1720817566906,0.20793992,57753.0,57747.0,0.05113468]
[1720817567097,0.20793992,57753.0,57745.0,0.20311435]
[1720817567098,0.0809,57750.0,57746.0,0.05113468]
[1720817567300,0.0809,57747.0,57746.0,0.05113468]
[1720817567485,0.0809,57747.0,57746.0,0.16913468]
[1720817567637,0.0822,57747.0,57746.0,0.16913468]
[1720817568272,0.0013,57747.0,57746.0,0.17013468]
[1720817568655,0.0013,57747.0,57746.0,0.16913468]
[1720817568857,0.0013,57747.0,57746.0,0.17013468]
[1720817569648,0.0013,57747.0,57746.0,0.31153468]
[1720817570487,0.0013,57747.0,57746.0,0.19353468]
[1720817574886,0.0013,57747.0,57746.0,0.29353468]
[1720817576148,0.0822,57747.0,57746.0,0.29353468]
[1720817578105,0.0822,57747.0,57746.0,0.41153468]
[1720817579384,0.10798014,57747.0,57746.0,0.41153468]
[1720817579561,0.20798014,57747.0,57746.0,0.29353468]
[1720817580376,0.20798014,57747.0,57746.0,0.21373468]
[1720817580792,0.20798014,57747.0,57746.0,0.15313468]
[1720817585014,0.20798014,57747.0,57746.0,0.1530721]
[1720817590107,0.12708014,57747.0,57746.0,0.3369721]
[1720817590309,0.12708014,57747.0,57746.0,0.4197721]
[1720817590310,0.02708014,57747.0,57746.0,0.4197721]
[1720817590492,0.02708014,57747.0,57746.0,0.47626074]
[1720817590493,0.12708014,57747.0,57746.0,0.47626074]
[1720817590897,0.12708014,57747.0,57746.0,0.4197721]
[1720817591407,0.14146899,57747.0,57746.0,0.4197721]
[1720817591619,0.04146899,57747.0,57746.0,0.4197721]
[1720817594098,0.02708014,57747.0,57746.0,0.4197721]
[1720817594300,0.04017945,57747.0,57746.0,0.4197721]
[1720817594542,0.16053034,57753.0,57748.0,0.0665]
[1720817594742,0.0809,57753.0,57751.0,0.0665]
[1720817595141,0.08084992,57753.0,57752.0,0.00306353]
[1720817596178,0.08184992,57753.0,57752.0,0.19956353]
[1720817596383,0.08184992,57753.0,57752.0,0.1965]
[1720817596540,0.08184992,57753.0,57752.0,0.22831356]
[1720817596742,0.08284992,57753.0,57752.0,0.22931356]
[1720817597309,0.08284992,57753.0,57752.0,0.23031356]
[1720817597927,0.18284992,57753.0,57752.0,0.23031356]
[1720817598339,0.18284992,57753.0,57752.0,0.1985]
[1720817599545,0.43892001,57753.0,57752.0,0.1985]
[1720817599761,0.43892001,57753.0,57752.0,0.2985]
[1720817601162,0.43891236,57753.0,57752.0,0.2985]
[1720817604484,0.43888388,57753.0,57752.0,0.2985]
[1720817604916,0.18284992,57753.0,57752.0,0.2985]
[1720817605120,0.43889593,57753.0,57752.0,0.2985]
[1720817608105,0.44019593,57753.0,57752.0,0.2985]
[1720817608510,0.20663139,57753.0,57752.0,0.2985]
[1720817608713,0.28753139,57753.0,57752.0,0.2985]
[1720817609946,0.0013,57753.0,57752.0,0.45777931]
[1720817610363,0.0013,57753.0,57752.0,0.2981721]
[1720817610364,0.0822,57753.0,57752.0,0.2981721]
[1720817610565,0.09659328,57753.0,57752.0,0.2981721]
[1720817610815,0.19659328,57753.0,57752.0,0.2981721]
[1720817611188,0.1156933,57753.0,57752.0,0.2981721]
[1720817611392,0.1965933,57753.0,57752.0,0.2981721]
[1720817611595,0.1965933,57753.0,57752.0,0.2971721]
[1720817611797,0.1965933,57753.0,57752.0,0.3011721]
[1720817611998,0.1965933,57753.0,57752.0,0.2961721]
[1720817612416,0.1965933,57753.0,57752.0,0.3601721]
[1720817612630,0.1965933,57753.0,57752.0,0.3631721]
[1720817612825,0.1965933,57753.0,57752.0,0.3591721]
[1720817613239,0.1965933,57753.0,57752.0,0.3611721]
[1720817613660,0.1965933,57753.0,57752.0,0.3620851]
[1720817613870,0.1965933,57753.0,57752.0,0.4200851]
[1720817614075,0.1974233,57753.0,57752.0,0.4200851]
[1720817614302,0.1371233,57753.0,57752.0,0.4200851]
[1720817614508,0.08173,57753.0,57752.0,0.4200851]
[1720817614713,0.09611885,57753.0,57752.0,0.4200851]
[1720817615124,0.09611886,57753.0,57752.0,0.4200851]
[1720817615546,0.09611886,57753.0,57752.0,0.3020851]
[1720817615748,0.09611886,57753.0,57752.0,0.4200851]
[1720817616367,0.19611886,57753.0,57752.0,0.4200851]
[1720817617142,0.19611886,57753.0,57752.0,0.1569851]
[1720817617556,0.19611824,57753.0,57752.0,0.1569851]
[1720817617758,0.19611824,57753.0,57752.0,0.2749851]
[1720817618168,0.19611666,57753.0,57752.0,0.2749851]
[1720817618377,0.19611666,57753.0,57752.0,0.1569851]
[1720817618591,0.11521666,57753.0,57752.0,0.50459945]
[1720817620270,0.01521666,57753.0,57752.0,0.50459945]
[1720817621359,0.00083,57753.0,57752.0,0.50459945]
[1720817621566,0.01521557,57753.0,57752.0,0.50459945]
[1720817621978,0.01521557,57753.0,57752.0,0.61505939]
[1720817624069,0.01521557,57753.0,57752.0,0.61812292]
[1720817624273,0.01521557,57753.0,57752.0,0.44012292]
[1720817624475,0.01521557,57753.0,57752.0,0.61812292]
[1720817624660,0.00083,57753.0,57752.0,0.61812292]
[1720817624898,0.01522881,57753.0,57752.0,0.61512292]
[1720817625104,0.01522881,57753.0,57752.0,0.81005939]
[1720817625313,0.01522881,57753.0,57752.0,0.81905939]
[1720817625314,0.01522873,57753.0,57752.0,0.81905939]
[1720817625517,0.01522873,57753.0,57752.0,0.82805939]
[1720817626776,0.01522873,57753.0,57752.0,0.63112292]
[1720817627394,0.01522909,57753.0,57752.0,0.63112292]
[1720817628016,0.00083,57753.0,57752.0,0.63112292]
[1720817628227,0.0152286,57753.0,57752.0,0.63112292]
[1720817629671,0.0152286,57753.0,57752.0,0.82805939]
[1720817630108,0.002,57769.0,57762.0,0.2290721]
[1720817630325,0.002,57769.0,57762.0,0.58029366]
[1720817630538,0.0163965,57769.0,57762.0,0.49939366]
[1720817630744,0.0143965,57768.0,57762.0,0.49939366]
[1720817630950,0.0202504,57763.0,57762.0,0.49939366]
[1720817631369,0.0058539,57763.0,57762.0,0.49939366]
[1720817631582,0.02025037,57763.0,57762.0,0.52739366]
[1720817632876,0.06963941,57781.0,57776.0,0.118]
[1720817633088,0.06963941,57781.0,57780.0,0.0510721]
[1720817633308,0.05035205,57782.0,57777.0,0.00306353]
[1720817633495,0.0809,57778.0,57773.0,0.0510721]
[1720817633754,0.446204,57777.0,57773.0,0.0510721]
[1720817633971,0.0809,57774.0,57773.0,0.0510721]
[1720817634380,0.0822,57774.0,57773.0,0.0510721]
[1720817635256,0.0822,57774.0,57769.0,0.0510721]
[1720817635257,0.0311,57773.0,57769.0,0.0510721]
[1720817635468,0.0311,57773.0,57766.0,0.0510721]
[1720817635677,0.0809,57767.0,57766.0,0.0510721]
[1720817635881,0.1505,57767.0,57766.0,0.0510721]
[1720817636105,0.2518,57767.0,57766.0,0.0510721]
[1720817636324,0.2518,57767.0,57765.0,0.0510721]
[1720817636561,0.2518,57767.0,57766.0,0.0510721]
[1720817637859,0.1822,57767.0,57766.0,0.0510721]
[1720817639333,0.1822,57767.0,57766.0,0.0520721]
[1720817639799,0.1822,57767.0,57766.0,0.0530721]
[1720817640213,0.2133,57767.0,57766.0,0.0530721]
[1720817640845,0.2133,57767.0,57758.0,0.0510721]
[1720817640846,0.0696,57766.0,57758.0,0.0510721]
[1720817641070,0.0311,57765.0,57760.0,0.0510721]
[1720817641278,0.0809,57761.0,57760.0,0.0510721]
[1720817641927,0.08160759,57761.0,57760.0,0.0510721]
[1720817642309,0.08160759,57761.0,57757.0,0.1690721]
[1720817642539,0.0809,57758.0,57757.0,0.1690721]
[1720817642964,0.0822,57758.0,57757.0,0.1690721]
[1720817643183,0.1133,57758.0,57753.0,0.1690721]
[1720817643393,0.0324,57758.0,57752.0,0.100913]
[1720817643599,0.0809,57754.0,57752.0,0.100913]
[1720817644034,0.0822,57754.0,57752.0,0.100913]
[1720817645714,0.0832,57754.0,57752.0,0.100913]
[1720817646132,0.0832,57754.0,57752.0,0.218913]
[1720817646348,0.0832,57754.0,57752.0,0.100913]
[1720817646769,0.0832,57754.0,57752.0,0.180813]
[1720817647637,0.0832,57754.0,57752.0,0.181813]
[1720817647848,0.0822,57754.0,57752.0,0.101913]
[1720817648273,0.0822,57754.0,57752.0,0.102913]
[1720817651477,0.0822,57754.0,57752.0,0.220913]
[1720817651909,0.10211225,57754.0,57752.0,0.220913]
[1720817652113,0.10211225,57754.0,57753.0,0.118]
[1720817652320,0.20211225,57754.0,57752.0,0.220913]
[1720817652527,0.1,57753.0,57752.0,0.220913]
[1720817652736,0.1,57753.0,57752.0,0.102913]
[1720817652942,0.1013,57753.0,57752.0,0.101913]
[1720817653568,0.1013,57753.0,57752.0,0.100913]
[1720817655047,0.1023,57753.0,57752.0,0.100913]
[1720817655738,0.1023,57753.0,57752.0,0.10085382]
[1720817657039,0.399197,57753.0,57752.0,0.05497343]
[1720817657253,0.422197,57753.0,57752.0,0.00118343]
[1720817657460,0.422197,57753.0,57752.0,4.3e-07]
[1720817657672,0.22906353,57753.0,57752.0,4.3e-07]
[1720817657852,0.22806353,57753.0,57752.0,4.3e-07]
[1720817658299,0.22906353,57753.0,57752.0,4.3e-07]
[1720817658535,0.22806353,57753.0,57752.0,4.3e-07]
[1720817658787,0.22806353,57753.0,57736.0,0.0510721]
[1720817658788,0.0696,57747.0,57736.0,0.0510721]
[1720817659002,0.0809,57737.0,57736.0,0.0510721]
[1720817659840,0.0809,57737.0,57725.0,0.1297721]
[1720817659841,0.727045,57737.0,57725.0,0.1297721]
[1720817660055,0.727045,57737.0,57722.0,0.118]
[1720817660056,0.0809,57726.0,57724.0,0.172255]
[1720817660272,0.0809,57726.0,57722.0,0.1423]
[1720817660273,0.0809,57726.0,57725.0,0.172255]
[1720817660492,0.023,57736.0,57728.0,0.172255]
[1720817660493,0.1,57735.0,57728.0,0.172255]
[1720817660704,0.0809,57729.0,57726.0,0.172255]
[1720817660923,0.0809,57729.0,57724.0,0.172255]
[1720817661135,0.0809,57725.0,57724.0,0.172255]
[1720817661533,0.0809,57725.0,57724.0,0.290255]
[1720817661775,0.0809,57725.0,57724.0,0.172255]
[1720817662194,0.0809,57725.0,57724.0,0.290255]
[1720817662616,0.0809,57725.0,57724.0,0.172255]
[1720817662825,0.0809,57725.0,57724.0,0.174255]
[1720817663233,0.0809,57725.0,57724.0,0.176255]
[1720817665309,0.0809,57725.0,57724.0,0.294255]
[1720817665508,0.0809,57725.0,57724.0,0.176255]
[1720817667775,0.0809,57725.0,57724.0,0.174255]
[1720817667987,0.1,57727.0,57726.0,0.290255]
[1720817668188,0.1039,57727.0,57726.0,0.290255]
[1720817668363,0.2039,57727.0,57726.0,0.290255]
[1720817669225,0.22469701,57727.0,57726.0,0.290255]
[1720817669428,0.22469701,57727.0,57726.0,0.291255]
[1720817669629,0.22599701,57727.0,57726.0,0.291255]
[1720817672141,0.22599701,57727.0,57726.0,0.353855]
[1720817672542,0.22469701,57727.0,57726.0,0.353855]
[1720817674014,0.22469701,57727.0,57726.0,0.353784]
[1720817674225,0.12079701,57727.0,57726.0,0.435984]
[1720817674426,0.02079701,57727.0,57726.0,0.54427315]
[1720817674679,0.12079701,57727.0,57726.0,0.54427315]
[1720817674880,0.1,57727.0,57726.0,0.5470561]
[1720817675289,0.1,57727.0,57726.0,0.5460561]
[1720817675736,0.0809,57735.0,57734.0,0.4873561]
[1720817677385,0.0879,57735.0,57734.0,0.3703561]
[1720817677591,0.0899,57735.0,57734.0,0.3713561]
[1720817678026,0.0899,57735.0,57734.0,0.4893561]
[1720817678652,0.0829,57735.0,57734.0,0.4883561]
[1720817679070,0.0839,57735.0,57734.0,0.4883561]
[1720817679497,0.0819,57735.0,57734.0,0.4873561]
[1720817679713,0.08276895,57735.0,57734.0,0.4883561]
[1720817680129,0.08476895,57735.0,57734.0,0.4883561]
[1720817680745,0.08276895,57735.0,57734.0,0.4883561]
[1720817681158,0.00186895,57735.0,57734.0,0.4883561]
[1720817681365,0.08276895,57735.0,57734.0,0.4883561]
[1720817681781,0.08276895,57735.0,57734.0,0.3703561]
[1720817682400,0.08176895,57735.0,57734.0,0.3693561]
[1720817682814,0.08276895,57735.0,57734.0,0.3803561]
[1720817683846,0.08276895,57735.0,57734.0,0.2342561]
[1720817684029,0.10576895,57735.0,57734.0,0.011]
[1720817684266,0.20576895,57735.0,57734.0,0.011]
[1720817684677,0.20576895,57735.0,57734.0,0.183184]
[1720817685479,0.20576895,57735.0,57734.0,0.011]
[1720817685687,0.20576895,57735.0,57734.0,0.183184]
[1720817685892,0.20576895,57735.0,57734.0,0.011]
[1720817687560,0.20576895,57735.0,57734.0,0.183184]
[1720817687778,0.20576895,57735.0,57734.0,0.011]
[1720817688564,0.20576895,57735.0,57734.0,0.183184]
[1720817689368,0.22017675,57735.0,57734.0,0.183184]
[1720817690456,0.20576895,57735.0,57734.0,0.011]
[1720817690655,0.22017661,57735.0,57734.0,0.183184]
[1720817691795,0.21806298,57750.0,57734.0,0.011]
[1720817691977,0.1,57750.0,57735.0,0.00306353]
[1720817692177,0.0809,57736.0,57735.0,0.00306353]
[1720817692380,0.0809,57736.0,57734.0,0.183184]
[1720817692884,0.0809,57736.0,57734.0,0.178184]
[1720817693101,0.0809,57736.0,57734.0,0.179184]
[1720817693324,0.0809,57736.0,57735.0,0.172184]
[1720817695640,0.0809,57736.0,57735.0,0.176184]
[1720817696610,0.0809,57736.0,57735.0,0.004]
[1720817696838,0.0809,57736.0,57729.0,0.0638]
[1720817697037,0.14587898,57748.0,57729.0,0.0638]
[1720817697038,0.0809,57731.0,57729.0,0.0638]
[1720817697215,0.0809,57731.0,57730.0,0.08511435]
[1720817699538,0.0809,57731.0,57730.0,0.09111435]
[1720817702294,0.1,57736.0,57730.0,0.006]
[1720817702523,0.1,57736.0,57726.0,0.000913]
[1720817702524,0.0225,57730.0,57726.0,0.000913]
[1720817702747,0.0809,57728.0,57722.0,0.1]
[1720817702970,0.0809,57724.0,57722.0,0.1]
[1720817703146,0.0809,57724.0,57721.0,0.172184]
[1720817703147,0.2,57738.0,57721.0,0.0761]
[1720817703355,0.2,57738.0,57721.0,0.248284]
[1720817703356,0.0809,57723.0,57721.0,0.248284]
[1720817703815,0.0809,57723.0,57721.0,0.0761]
[1720817705169,0.0809,57723.0,57721.0,0.248284]
[1720817705399,0.0809,57723.0,57722.0,0.06212923]
[1720817706935,0.0809,57723.0,57721.0,0.0761]
[1720817707139,0.0809,57723.0,57722.0,0.004]
[1720817708433,0.0809,57723.0,57721.0,0.0761]
[1720817708638,0.0819,57723.0,57721.0,0.0811]
[1720817709080,0.08176876,57723.0,57721.0,0.0761]
[1720817709513,0.08276876,57723.0,57722.0,0.005]
[1720817709891,0.08176876,57723.0,57721.0,0.0761]
[1720817710270,0.08276876,57723.0,57721.0,0.253284]
[1720817711517,0.01773561,57723.0,57722.0,0.532184]
[1720817711751,0.01773561,57723.0,57722.0,0.61763425]
[1720817712011,0.01673561,57723.0,57722.0,0.61763425]
[1720817712243,0.01773561,57723.0,57722.0,0.57107144]
[1720817712471,0.01686685,57723.0,57722.0,0.57107144]
[1720817713992,0.01773562,57723.0,57722.0,0.57107144]
[1720817716459,0.06083349,57740.0,57726.0,0.03688744]
[1720817716652,2.530209,57739.0,57727.0,0.00306353]
[1720817716851,0.0809,57727.0,57726.0,0.03688744]
[1720817718660,0.0809,57727.0,57726.0,0.03788744]
[1720817719354,0.0809,57727.0,57726.0,0.03688744]
[1720817721574,0.0809,57727.0,57720.0,0.03688744]
[1720817721575,0.1039,57727.0,57720.0,0.03688744]
[1720817721767,0.1039,57727.0,57724.0,0.03688744]
[1720817721768,0.123,57726.0,57724.0,0.03688744]
[1720817721948,0.0809,57725.0,57724.0,0.03688744]
[1720817722188,0.1039,57725.0,57724.0,0.03688744]
[1720817722400,0.2039,57725.0,57724.0,0.03688744]
[1720817722806,0.2039,57725.0,57724.0,0.03888744]
[1720817723416,0.2039,57725.0,57724.0,0.03688744]
[1720817723829,0.2039,57725.0,57724.0,0.03988744]
[1720817724247,0.2039,57725.0,57724.0,0.35727144]
[1720817724899,0.2039,57725.0,57724.0,0.47527144]
[1720817725100,0.2039,57725.0,57724.0,0.35727144]
[1720817726346,0.2039,57725.0,57724.0,0.320384]
[1720817726548,0.2039,57725.0,57724.0,0.35727144]
[1720817726753,0.2039,57725.0,57724.0,0.18508744]
[1720817728167,0.2039,57725.0,57724.0,0.1482]
[1720817728375,0.2039,57725.0,57724.0,0.18508744]
[1720817729388,0.2039,57725.0,57724.0,0.1482]
[1720817729562,0.2039,57725.0,57724.0,0.18501648]
[1720817729802,0.2039,57725.0,57724.0,0.16449254]
[1720817730615,0.06083349,57740.0,57724.0,0.16449254]
[1720817730813,2.677436,57739.0,57725.0,0.26036188]
[1720817731148,3.14871,57740.0,57725.0,0.25729835]
[1720817731352,0.0809,57726.0,57725.0,0.25729835]
[1720817731555,0.06083349,57738.0,57725.0,0.172184]
[1720817731764,1.985013,57737.0,57726.0,0.00306353]
[1720817731971,0.0809,57727.0,57726.0,0.00306353]
[1720817732184,0.0809,57728.0,57727.0,0.172184]
[1720817733608,0.0829,57728.0,57727.0,0.172184]
[1720817733815,0.0829,57728.0,57725.0,0.172184]
[1720817734858,0.0809,57728.0,57725.0,0.172184]
[1720817735268,0.0829,57728.0,57725.0,0.172184]
[1720817735888,0.0829,57728.0,57727.0,0.310184]
[1720817736092,0.002,57728.0,57727.0,0.310184]
[1720817736501,0.002,57728.0,57727.0,0.428184]
[1720817736682,0.001,57728.0,57727.0,0.428184]
[1720817737025,0.001,57728.0,57727.0,0.310184]
[1720817737287,0.001,57728.0,57727.0,0.428184]
[1720817737855,0.0809,57731.0,57727.0,0.310184]
[1720817738068,0.0809,57731.0,57730.0,0.08511435]
[1720817738276,0.0809,57731.0,57730.0,0.25629835]
[1720817738488,0.0809,57731.0,57730.0,0.37429835]
[1720817738691,0.0809,57731.0,57730.0,0.172184]
[1720817738895,0.0809,57731.0,57729.0,0.172184]
[1720817739305,0.0859,57731.0,57729.0,0.172184]
[1720817739705,0.0859,57731.0,57727.0,0.256]
[1720817739706,0.0859,57731.0,57730.0,0.172184]
[1720817739940,0.0859,57731.0,57728.0,0.118]
[1720817739941,0.10030136,57731.0,57728.0,0.172184]
[1720817740150,0.0909,57731.0,57730.0,0.001]
[1720817740319,0.10530123,57731.0,57730.0,0.001]
[1720817740525,0.20530123,57731.0,57730.0,0.001]
[1720817740722,0.2214354,57731.0,57730.0,0.001]
[1720817740924,0.20703417,57731.0,57730.0,0.001]
[1720817741131,0.2164354,57731.0,57730.0,0.001]
[1720817741323,0.2214354,57731.0,57727.0,0.310184]
[1720817741532,0.11440123,57730.0,57727.0,0.310184]
[1720817741778,0.01440123,57729.0,57728.0,0.172184]
[1720817742063,0.01440123,57729.0,57727.0,0.310184]
[1720817742264,0.01440123,57728.0,57727.0,0.310184]
[1720817743490,0.01540123,57728.0,57727.0,0.310184]
[1720817744542,0.01538981,57728.0,57727.0,0.310184]
[1720817745000,0.01639048,57728.0,57727.0,0.310184]
[1720817746651,0.01639014,57728.0,57727.0,0.310184]
[1720817747869,0.01639054,57728.0,57727.0,0.310184]
[1720817748543,0.01139054,57728.0,57727.0,0.310184]
[1720817750730,0.1809,57730.0,57727.0,0.310184]
[1720817751149,0.0809,57730.0,57728.0,0.00215489]
[1720817752188,0.0839,57730.0,57728.0,0.00215489]
[1720817752427,0.1809,57730.0,57728.0,0.00215489]
[1720817752628,0.1809,57730.0,57727.0,0.310184]
[1720817752782,0.1839,57730.0,57728.0,0.00198127]
[1720817752984,0.1839,57730.0,57727.0,0.1379]
[1720817753192,0.1839,57730.0,57727.0,0.1373]
[1720817753394,0.1879,57730.0,57727.0,0.1373]
[1720817753973,0.1879,57730.0,57727.0,0.1368]
[1720817754391,0.44063971,57730.0,57727.0,0.1367]
[1720817754594,0.44063971,57730.0,57727.0,0.10824129]
[1720817754884,0.54038611,57728.0,57721.0,0.000913]
[1720817755078,0.0809,57722.0,57702.0,0.00306353]
[1720817755251,0.28123502,57717.0,57712.0,0.51068611]
[1720817755457,0.0809,57713.0,57701.0,0.35729835]
[1720817755615,0.0809,57706.0,57704.0,0.172184]
[1720817756088,0.0809,57706.0,57705.0,0.254584]
[1720817756312,0.0809,57709.0,57705.0,0.254584]
[1720817756481,0.01438079,57708.0,57705.0,0.254584]
[1720817757421,0.01438079,57708.0,57705.0,0.372584]
[1720817757422,0.003,57706.0,57705.0,0.372584]
[1720817757739,0.003,57706.0,57705.0,0.435784]
[1720817757872,0.02038079,57706.0,57705.0,0.435784]
[1720817758098,0.003,57706.0,57705.0,0.435784]
[1720817758297,0.01438237,57707.0,57706.0,0.172184]
[1720817758481,0.01438237,57707.0,57706.0,0.169184]
[1720817759285,0.053816,57727.0,57707.0,0.169184]
[1720817759488,0.0869,57708.0,57707.0,0.25429835]
[1720817759696,0.0869,57708.0,57707.0,0.25029835]
[1720817760109,0.0809,57708.0,57707.0,0.25029835]
[1720817760314,0.0809,57708.0,57707.0,0.165184]
[1720817760636,0.0809,57708.0,57707.0,0.160184]
[1720817761183,0.0919,57708.0,57707.0,0.160184]
[1720817763300,0.011,57708.0,57707.0,0.5764824]
[1720817763717,0.011,57708.0,57707.0,0.614984]
[1720817764109,0.005,57708.0,57707.0,0.614984]
[1720817764310,0.005,57708.0,57707.0,0.615984]
[1720817764697,0.0809,57714.0,57713.0,0.519184]
[1720817764911,0.0809,57714.0,57713.0,0.141]
[1720817765537,0.0809,57714.0,57711.0,0.160184]
[1720817766151,0.0859,57714.0,57711.0,0.160184]
[1720817766571,0.0809,57714.0,57711.0,0.160184]
[1720817766773,0.0859,57714.0,57711.0,0.161184]
[1720817767398,0.01439595,57713.0,57711.0,0.161184]
[1720817767584,0.01439595,57712.0,57711.0,0.161184]
[1720817769063,0.01639595,57712.0,57711.0,0.161184]
[1720817769270,0.01639595,57712.0,57711.0,0.160184]
[1720817769700,0.4771,57726.0,57711.0,0.160184]
[1720817769701,0.39020098,57726.0,57711.0,0.160184]
[1720817769850,0.0809,57712.0,57711.0,0.160184]
[1720817770640,0.0839,57712.0,57711.0,0.160184]
[1720817771010,0.0839,57712.0,57710.0,0.0652]
[1720817771216,0.0809,57712.0,57710.0,0.0652]
[1720817771838,0.0819,57712.0,57711.0,0.007]
[1720817772053,0.0809,57712.0,57710.0,0.0652]
[1720817772362,0.0819,57712.0,57710.0,0.0722]
[1720817772764,0.0819,57712.0,57710.0,0.007]
[1720817773349,0.0829,57712.0,57711.0,0.006]
[1720817773671,0.1049,57712.0,57710.0,0.007]
[1720817774059,0.1,57711.0,57710.0,0.013]
[1720817774235,0.1,57711.0,57709.0,0.06848058]
[1720817774414,0.25634,57711.0,57709.0,0.06848058]
[1720817774616,0.186558,57710.0,57709.0,0.06848058]
[1720817774811,0.286558,57710.0,57709.0,0.06848058]
[1720817775648,0.286558,57710.0,57709.0,0.009]
[1720817776046,0.286558,57710.0,57707.0,0.062]
[1720817776253,0.0809,57708.0,57707.0,0.062]
[1720817776657,0.0809,57708.0,57705.0,0.0818]
[1720817777135,0.0809,57708.0,57705.0,0.0808]
[1720817777737,0.01439177,57707.0,57705.0,0.0808]
[1720817777939,0.0809,57708.0,57705.0,0.0808]
[1720817777940,0.01439177,57706.0,57705.0,0.0808]
[1720817778144,0.01439177,57706.0,57705.0,0.0858]
[1720817778928,0.01439177,57706.0,57705.0,0.0808]
[1720817779159,0.01539177,57706.0,57705.0,0.0888]
[1720817779769,0.01539177,57706.0,57705.0,0.1551]
[1720817780202,0.01539177,57706.0,57705.0,0.1511]
[1720817780590,0.01639177,57706.0,57705.0,0.1551]
[1720817780797,0.01639039,57706.0,57705.0,0.1551]
[1720817784106,0.01639056,57706.0,57705.0,0.1551]
[1720817784315,0.09729049,57706.0,57705.0,0.06679008]
[1720817784937,0.09729049,57706.0,57705.0,0.34497408]
[1720817785140,0.01639049,57706.0,57705.0,0.57331156]
[1720817785384,0.01639049,57706.0,57705.0,0.51345466]
[1720817786635,0.01639139,57706.0,57705.0,0.51345466]
[1720817786833,0.01639139,57706.0,57705.0,0.41345466]
[1720817787049,0.01639139,57706.0,57705.0,0.29545466]
[1720817787617,0.09729096,57706.0,57705.0,0.21417066]
[1720817788046,0.09729096,57706.0,57705.0,0.22615911]
[1720817794097,0.002,57706.0,57705.0,0.60434311]
[1720817794646,0.01639244,57706.0,57705.0,0.60434311]
[1720817794857,0.0163922,57706.0,57705.0,0.60434311]
[1720817796735,0.002,57706.0,57705.0,0.60434311]
[1720817796936,0.01639131,57706.0,57705.0,0.60434311]
[1720817797732,0.01639139,57706.0,57705.0,0.60434311]
[1720817798696,0.01639139,57706.0,57705.0,0.32615911]
[1720817798898,0.01639139,57706.0,57705.0,0.60434311]
[1720817799101,0.01639139,57706.0,57705.0,0.66434311]
[1720817801052,0.01639242,57706.0,57705.0,0.66434311]
[1720817801453,0.01639242,57706.0,57705.0,0.60434311]
[1720817801676,0.01639242,57706.0,57705.0,0.66434311]
[1720817802054,0.01639242,57706.0,57705.0,0.60434311]
[1720817802283,0.01639242,57706.0,57705.0,0.66434311]
[1720817803897,0.01639242,57706.0,57705.0,0.91853811]
[1720817804102,0.00083,57710.0,57709.0,0.64606458]
[1720817804300,0.00083,57710.0,57709.0,0.81207893]
[1720817804507,0.00083,57710.0,57709.0,2.04435211]
[1720817805005,0.00083,57710.0,57709.0,1.69778611]
[1720817805503,0.00183,57710.0,57709.0,1.71078611]
[1720817805875,0.00183,57710.0,57709.0,1.36422011]
[1720817806074,0.00283,57710.0,57709.0,1.20093711]
[1720817806331,0.00283,57710.0,57709.0,1.37422011]
[1720817806736,0.00283,57710.0,57709.0,1.20093711]
[1720817807339,0.00283,57710.0,57709.0,0.68188536]
[1720817812131,0.0172258,57710.0,57709.0,0.68188536]
[1720817814438,0.01722704,57710.0,57709.0,0.68188536]
[1720817814654,0.01622704,57710.0,57709.0,0.66788536]
[1720817814837,0.00183,57710.0,57709.0,0.7568552]
[1720817815042,0.01622705,57710.0,57709.0,0.7428552]
[1720817815250,0.01622705,57710.0,57709.0,0.8237552]
[1720817815450,0.01522705,57710.0,57709.0,0.8277552]
[1720817815649,0.01522705,57710.0,57709.0,0.8417552]